bitfinex-derivatives/quotes_BTCF0:USTF0_20251204
["timestamp","ask_amount","ask_price","bid_price","bid_amount"]
[1764866192305,0.39028903,92926.0,92925.0,0.05727]
[1764866192701,0.41878903,92926.0,92917.0,0.01647]
[1764866192894,0.02964002,92918.0,92917.0,0.07374]
[1764866193597,0.02964002,92918.0,92916.0,0.00016144]
[1764866193598,0.07249,92917.0,92916.0,0.00016144]
[1764866193801,0.07491002,92917.0,92916.0,0.00016144]
[1764866194201,0.05814002,92917.0,92916.0,0.05953809]
[1764866195501,0.3668,92918.0,92916.0,0.07029839]
[1764866195704,0.3608,92918.0,92917.0,0.07624665]
[1764866197504,0.41744,92918.0,92917.0,0.02946665]
[1764866197802,0.41744,92918.0,92917.0,0.02866]
[1764866198007,0.07341,92917.0,92916.0,0.00016144]
[1764866198308,0.07583002,92917.0,92916.0,0.00016144]
[1764866198501,0.05906002,92917.0,92916.0,0.00016144]
[1764866199209,0.06106002,92917.0,92916.0,0.00016144]
[1764866199995,0.06106002,92917.0,92916.0,0.07029849]
[1764866200197,0.007,92917.0,92916.0,0.07129849]
[1764866201112,0.007,92917.0,92916.0,0.43209849]
[1764866201298,0.00026903,92926.0,92925.0,0.0693294]
[1764866201496,0.00026903,92926.0,92925.0,0.43093605]
[1764866201706,0.0107571,92945.0,92934.0,0.0693283]
[1764866201898,0.0107573,92943.0,92934.0,0.43093495]
[1764866202306,0.3608,92949.0,92934.0,0.43093495]
[1764866202503,0.3608,92949.0,92948.0,0.05803]
[1764866202896,0.02824,92949.0,92948.0,0.05803]
[1764866203111,0.3608,92958.0,92948.0,0.05803]
[1764866203305,0.00026892,92966.0,92956.0,0.05859]
[1764866203306,0.07842737,92957.0,92956.0,0.05859]
[1764866203607,0.05597036,92966.0,92965.0,0.02922]
[1764866203806,0.02824,92948.0,92947.0,0.05875144]
[1764866204011,0.011,92949.0,92948.0,0.0693467]
[1764866204318,0.011,92949.0,92948.0,0.08070666]
[1764866204512,0.06154,92957.0,92956.0,0.001]
[1764866204811,0.06396002,92957.0,92956.0,0.001]
[1764866205005,0.06396002,92957.0,92956.0,0.00180665]
[1764866205304,0.08685612,92957.0,92956.0,0.001]
[1764866205609,0.06596002,92957.0,92956.0,0.06039665]
[1764866205999,0.05754,92957.0,92956.0,0.05939665]
[1764866206513,0.05554,92949.0,92948.0,0.01155331]
[1764866206697,0.05796002,92949.0,92948.0,0.03977331]
[1764866206904,0.05796002,92949.0,92948.0,0.06914331]
[1764866207104,0.05554,92948.0,92947.0,0.00016144]
[1764866207404,0.05554,92917.0,92916.0,0.02922]
[1764866207606,0.05554,92917.0,92906.0,0.01776]
[1764866207814,0.05554,92917.0,92906.0,0.02879842]
[1764866208009,0.05554,92916.0,92915.0,0.02922]
[1764866208198,0.41634,92916.0,92915.0,0.05859]
[1764866208403,0.4392351,92916.0,92915.0,0.05859]
[1764866209209,0.4392351,92916.0,92906.0,0.02895986]
[1764866209210,0.02824,92907.0,92906.0,0.08754986]
[1764866209515,0.03066002,92907.0,92906.0,0.08754986]
[1764866209900,0.05796002,92907.0,92906.0,0.06978986]
[1764866210114,0.05796002,92907.0,92906.0,0.00016144]
[1764866210512,0.08086988,92907.0,92906.0,0.00016144]
[1764866210713,0.08186988,92907.0,92906.0,0.00116144]
[1764866211006,0.08286988,92907.0,92906.0,0.00116144]
[1764866211804,0.05554,92902.0,92886.0,0.0107638]
[1764866212120,0.38904,92897.0,92896.0,0.05859]
[1764866212312,0.41194986,92897.0,92896.0,0.05859]
[1764866212512,0.43924986,92897.0,92896.0,0.05859]
[1764866213200,0.43924986,92897.0,92896.0,0.06859]
[1764866213201,0.44124986,92897.0,92896.0,0.06859]
[1764866214720,0.38570986,92897.0,92896.0,0.06859]
[1764866214917,0.3628,92897.0,92896.0,0.06959]
[1764866215117,0.39104,92897.0,92896.0,0.06959]
[1764866216513,0.41834,92897.0,92896.0,0.011]
[1764866216914,0.4291026,92897.0,92896.0,0.011]
[1764866217314,0.4291026,92897.0,92896.0,0.06959]
[1764866217517,0.41834,92897.0,92896.0,0.06959]
[1764866217820,0.41834,92897.0,92896.0,0.011]
[1764866220716,0.41834,92897.0,92896.0,0.06959]
[1764866221219,0.002,92897.0,92896.0,0.06959]
[1764866221619,0.00016144,92906.0,92905.0,0.0693517]
[1764866221820,0.00258146,92906.0,92905.0,0.07015835]
[1764866222218,0.00016144,92906.0,92905.0,0.05939665]
[1764866222622,0.00258146,92906.0,92905.0,0.05939665]
[1764866222926,0.00016144,92906.0,92905.0,0.06139665]
[1764866223224,0.05912146,92906.0,92905.0,0.00280665]
[1764866223522,0.05912146,92906.0,92905.0,0.002]
[1764866223914,0.56240146,92906.0,92905.0,0.002]
[1764866224114,0.58618063,92906.0,92905.0,0.002]
[1764866225218,0.08290063,92906.0,92905.0,0.002]
[1764866225525,0.58622063,92906.0,92905.0,0.002]
[1764866225721,0.05688,92888.0,92887.0,0.05711144]
[1764866225921,0.05688,92888.0,92887.0,0.05791809]
[1764866226815,0.05688,92888.0,92887.0,0.00016144]
[1764866227018,0.05698479,92888.0,92887.0,0.00196809]
[1764866227225,0.05698479,92888.0,92887.0,0.00116144]
[1764866227723,0.0676438,92887.0,92886.0,0.00026915]
[1764866227926,0.0676438,92887.0,92867.0,0.3608]
[1764866227927,0.05688,92876.0,92875.0,0.0677151]
[1764866228122,0.010766,92868.0,92867.0,0.3608]
[1764866228320,0.05688,92863.0,92862.0,0.0107666]
[1764866228516,0.05930002,92863.0,92862.0,0.0394166]
[1764866228721,0.05930002,92863.0,92862.0,0.0677166]
[1764866229623,0.06030002,92863.0,92862.0,0.0687166]
[1764866229830,0.001,92863.0,92862.0,0.0855066]
[1764866230931,0.002,92863.0,92862.0,0.0855066]
[1764866231229,0.05688,92861.0,92860.0,0.3608]
[1764866231423,0.05930002,92861.0,92860.0,0.3715669]
[1764866231727,0.05930002,92861.0,92860.0,0.4285169]
[1764866232627,0.05788,92861.0,92860.0,0.4295169]
[1764866233133,0.05988,92861.0,92860.0,0.001]
[1764866233723,0.05988,92861.0,92860.0,0.00180665]
[1764866234029,0.05988,92861.0,92860.0,0.05875665]
[1764866234228,0.003,92861.0,92860.0,0.05875665]
[1764866234728,0.03255,92861.0,92860.0,0.05975665]
[1764866234935,0.05988,92861.0,92860.0,0.002]
[1764866235234,0.05688,92857.0,92856.0,0.0107673]
[1764866235833,0.02955,92857.0,92856.0,0.0677173]
[1764866236423,0.03055,92857.0,92856.0,0.0687173]
[1764866237721,0.03055,92857.0,92853.0,0.00016153]
[1764866237722,0.0107674,92856.0,92853.0,0.00016153]
[1764866237927,0.42010002,92854.0,92853.0,0.00016153]
[1764866238429,0.0676481,92850.0,92849.0,0.00013782]
[1764866238623,0.0676484,92847.0,92832.0,0.0275601]
[1764866238837,0.07006842,92847.0,92823.0,0.50324]
[1764866239234,0.07006842,92847.0,92833.0,0.01077]
[1764866239437,0.07006842,92847.0,92842.0,0.01064529]
[1764866239631,0.05930002,92847.0,92844.0,0.0107687]
[1764866239835,0.05930002,92847.0,92846.0,0.05802591]
[1764866240834,0.3608,92853.0,92852.0,0.0677178]
[1764866241037,0.3608,92853.0,92852.0,0.06852445]
[1764866241931,0.3618,92853.0,92852.0,0.07052445]
[1764866242526,0.3628,92853.0,92852.0,0.07052445]
[1764866243640,0.002,92853.0,92852.0,0.07052445]
[1764866244734,0.05888,92853.0,92852.0,0.01357445]
[1764866244938,0.05888,92853.0,92852.0,0.0127678]
[1764866245141,0.05888,92853.0,92852.0,0.002]
[1764866246440,0.0676484,92847.0,92846.0,0.00026926]
[1764866246635,0.07006842,92847.0,92846.0,0.00026926]
[1764866246831,0.05688,92831.0,92830.0,0.0107703]
[1764866247037,0.05688,92828.0,92827.0,0.0107707]
[1764866247238,0.05930002,92828.0,92827.0,0.0107707]
[1764866247741,0.05930002,92828.0,92818.0,0.37759]
[1764866247742,0.05688,92819.0,92818.0,0.02865]
[1764866248038,0.0403229,92808.0,92807.0,0.07374]
[1764866248239,0.02967001,92808.0,92807.0,0.08478218]
[1764866248444,0.00012001,92808.0,92807.0,0.08478218]
[1764866248644,0.00012001,92808.0,92807.0,0.44558218]
[1764866249344,0.00012001,92808.0,92807.0,0.44758218]
[1764866250028,0.00016162,92817.0,92816.0,0.010772]
[1764866250234,0.00016162,92817.0,92816.0,0.42932865]
[1764866251038,0.00024214,92817.0,92816.0,0.42932865]
[1764866251432,0.3608,92841.0,92840.0,0.0845092]
[1764866251737,0.39035,92841.0,92840.0,0.0845092]
[1764866251932,0.41768,92841.0,92840.0,0.0677192]
[1764866252441,0.36084208,92841.0,92840.0,0.0845092]
[1764866252646,0.36184208,92841.0,92840.0,0.0845092]
[1764866253033,0.41872208,92841.0,92840.0,0.0677192]
[1764866253846,0.41972208,92841.0,92840.0,0.0697192]
[1764866254035,0.36284208,92841.0,92840.0,0.0697192]
[1764866254240,0.00204208,92841.0,92840.0,0.0697192]
[1764866254535,0.05637208,92841.0,92840.0,0.0697192]
[1764866254744,0.05737208,92841.0,92840.0,0.0127692]
[1764866255043,0.05737208,92841.0,92840.0,0.0723492]
[1764866255442,0.00204208,92841.0,92840.0,0.0898292]
[1764866255635,0.00204208,92841.0,92840.0,0.0908292]
[1764866257338,0.00204208,92841.0,92840.0,0.4516292]
[1764866257738,0.00104208,92841.0,92840.0,0.4526292]
[1764866257945,0.00204208,92841.0,92840.0,0.4526292]
[1764866258244,0.00016162,92850.0,92849.0,0.0703482]
[1764866258441,0.00016162,92850.0,92849.0,0.43195485]
[1764866259046,0.3608,92868.0,92867.0,0.0703461]
[1764866259544,0.3715652,92876.0,92873.0,0.0107654]
[1764866259746,0.05775002,92874.0,92873.0,0.0107654]
[1764866260044,0.05533,92871.0,92870.0,0.02999]
[1764866260235,0.05775002,92871.0,92870.0,0.02999]
[1764866260432,0.05775002,92871.0,92870.0,0.04091337]
[1764866261245,0.05875002,92871.0,92870.0,0.04391337]
[1764866261649,0.05875002,92871.0,92870.0,0.01392337]
[1764866261845,0.05975002,92871.0,92870.0,0.01392337]
[1764866262049,0.05975002,92871.0,92870.0,0.003]
[1764866262352,0.08259509,92871.0,92870.0,0.003]
[1764866265662,0.14051641,92871.0,92870.0,0.003]
[1764866266149,0.05556,92867.0,92866.0,0.0107662]
[1764866266446,0.05556,92865.0,92864.0,0.00016154]
[1764866266651,0.44162509,92865.0,92864.0,0.00016154]
[1764866267945,0.44362509,92865.0,92864.0,0.04168819]
[1764866268148,0.44362509,92865.0,92864.0,0.07123819]
[1764866268451,0.02384507,92865.0,92864.0,0.06223819]
[1764866268649,0.001,92865.0,92864.0,0.06223819]
[1764866269452,0.00016154,92883.0,92882.0,0.0700344]
[1764866269766,0.02300195,92883.0,92882.0,0.0700344]
[1764866270360,0.00016154,92883.0,92882.0,0.0700344]
[1764866270658,0.00216154,92883.0,92882.0,0.0700344]
[1764866270853,0.00516154,92883.0,92882.0,0.0710344]
[1764866273457,0.06072154,92883.0,92882.0,0.0710344]
[1764866274560,0.06072154,92883.0,92882.0,0.001]
[1764866274561,0.07148574,92883.0,92882.0,0.001]
[1764866274960,0.09428254,92883.0,92882.0,0.001]
[1764866275152,0.05556,92870.0,92869.0,0.0404858]
[1764866275352,0.05556,92870.0,92869.0,0.0404859]
[1764866276256,0.05656,92870.0,92869.0,0.0404859]
[1764866276458,0.05656,92870.0,92869.0,0.0730359]
[1764866276459,0.05756,92870.0,92869.0,0.0730359]
[1764866280066,0.05756,92870.0,92869.0,0.0434859]
[1764866280458,0.002,92870.0,92869.0,0.0730359]
[1764866282569,0.00016154,92883.0,92882.0,0.0700344]
[1764866283266,0.05814156,92883.0,92882.0,0.0700344]
[1764866283564,0.05556,92877.0,92876.0,0.0107651]
[1764866283763,0.05798002,92877.0,92876.0,0.0680451]
[1764866284460,0.05798002,92877.0,92876.0,0.05728]
[1764866284655,0.0690763,92865.0,92864.0,0.02902154]
[1764866284866,0.4298763,92865.0,92864.0,0.00016154]
[1764866285758,0.4298763,92865.0,92863.0,0.01067982]
[1764866285958,0.05831,92859.0,92858.0,0.0396271]
[1764866286163,0.0107671,92858.0,92855.0,0.02886]
[1764866286364,0.06073002,92856.0,92855.0,0.0671874]
[1764866287161,0.06073002,92856.0,92840.0,0.01788]
[1764866287366,0.01783,92840.0,92766.0,0.0002695]
[1764866287670,0.00999999,92750.0,92749.0,0.0107798]
[1764866287864,0.00999999,92780.0,92749.0,1.55794639]
[1764866288066,0.03831495,92779.0,92757.0,0.0107788]
[1764866288370,0.7216,92758.0,92753.0,0.0107792]
[1764866288560,0.7216,92758.0,92750.0,1.09989274]
[1764866288561,0.7216,92758.0,92757.0,0.00080665]
[1764866288760,0.69559199,92758.0,92757.0,0.43054013]
[1764866289061,0.66831848,92758.0,92757.0,0.42973348]
[1764866289466,0.67031848,92758.0,92757.0,0.42973348]
[1764866290061,0.66931848,92758.0,92757.0,0.43073348]
[1764866290263,0.66931848,92758.0,92757.0,0.05894639]
[1764866291374,0.67031848,92758.0,92757.0,0.05894639]
[1764866291961,0.67031848,92758.0,92757.0,0.00786181]
[1764866292271,0.67031848,92758.0,92757.0,0.001]
[1764866292465,0.05831,92740.0,92739.0,0.01064865]
[1764866292668,0.05831,92738.0,92737.0,1.73588]
[1764866292868,0.05831,92738.0,92737.0,1.5]
[1764866292869,0.09903491,92738.0,92737.0,1.5]
[1764866293071,0.09903491,92738.0,92737.0,1.50520369]
[1764866293461,0.10981601,92738.0,92737.0,1.50520369]
[1764866293662,0.05831,92727.0,92720.0,7.961e-05]
[1764866293865,0.45732376,92727.0,92726.0,0.00107626]
[1764866294065,0.39901376,92727.0,92726.0,0.05668961]
[1764866294275,0.39901376,92727.0,92726.0,0.4284767]
[1764866294676,0.45732376,92727.0,92726.0,1.8720567]
[1764866295065,0.45732376,92727.0,92726.0,0.00026961]
[1764866295266,0.45932376,92727.0,92726.0,0.01026961]
[1764866295476,0.45932376,92727.0,92726.0,0.01226961]
[1764866296073,0.45932376,92727.0,92726.0,0.01026961]
[1764866296266,0.45732376,92727.0,92726.0,0.01126961]
[1764866296576,0.45932376,92727.0,92726.0,0.01126961]
[1764866297578,0.0690931,92721.0,92720.0,7.961e-05]
[1764866297763,0.10972688,92721.0,92720.0,7.961e-05]
[1764866298573,0.09894378,92721.0,92720.0,7.961e-05]
[1764866298874,0.05831,92703.0,92702.0,1.5]
[1764866299078,0.81812376,92703.0,92702.0,1.5]
[1764866299378,0.010786,92696.0,92685.0,0.01783]
[1764866299574,0.010786,92696.0,92686.0,0.37286347]
[1764866299575,0.78233002,92687.0,92686.0,0.37286347]
[1764866299777,0.82065867,92687.0,92686.0,1.87205682]
[1764866299968,0.82065867,92687.0,92686.0,0.37205682]
[1764866300168,0.79323191,92687.0,92686.0,0.37205682]
[1764866300376,0.79323191,92687.0,92686.0,1.87205682]
[1764866300571,0.0107878,92680.0,92658.0,0.0107903]
[1764866300778,0.3608,92659.0,92658.0,0.05642]
[1764866300977,0.36090246,92659.0,92658.0,0.06746674]
[1764866301570,0.36090246,92659.0,92658.0,1.56746674]
[1764866302276,0.36390246,92659.0,92658.0,2.06746674]
[1764866302477,0.36390246,92659.0,92658.0,2.44225383]
[1764866302774,0.00016182,92678.0,92677.0,0.05642]
[1764866303381,0.3608,92689.0,92676.0,0.3608]
[1764866303382,0.3608,92689.0,92688.0,0.05642]
[1764866303588,0.39974794,92689.0,92688.0,0.05642]
[1764866303767,0.45805794,92689.0,92665.0,0.0107895]
[1764866303968,0.3608,92675.0,92674.0,0.05642]
[1764866304168,0.39965091,92675.0,92674.0,0.05642]
[1764866304890,0.39965091,92675.0,92674.0,0.02886]
[1764866305084,0.45621616,92675.0,92674.0,0.02886]
[1764866305268,0.45621616,92675.0,92674.0,0.05642]
[1764866305468,0.45796091,92675.0,92665.0,0.00016182]
[1764866305685,0.41911,92675.0,92674.0,0.002]
[1764866305873,0.81876863,92675.0,92674.0,0.002]
[1764866306076,0.82376863,92675.0,92674.0,0.002]
[1764866306280,0.79425863,92675.0,92674.0,0.03086]
[1764866306480,0.76045863,92675.0,92674.0,0.05842]
[1764866306682,0.76045863,92675.0,92662.0,0.50916]
[1764866306683,0.05831,92666.0,92644.0,0.3608]
[1764866306880,0.01783,92670.0,92625.0,0.01783]
[1764866306881,0.05831,92647.0,92625.0,0.01783]
[1764866307186,0.00242002,92638.0,92637.0,0.05650932]
[1764866307483,0.0400393,92638.0,92637.0,0.05650932]
[1764866307673,0.0400393,92638.0,92637.0,0.02894932]
[1764866307878,0.03761928,92638.0,92637.0,0.05850932]
[1764866308380,8.86e-05,92646.0,92637.0,0.05850932]
[1764866308681,0.3608,92638.0,92637.0,0.05850932]
[1764866309477,0.3608,92638.0,92637.0,0.02894932]
[1764866309677,0.3678,92638.0,92637.0,0.02894932]
[1764866310273,0.42111,92638.0,92637.0,8.932e-05]
[1764866310486,0.46047803,92638.0,92637.0,8.932e-05]
[1764866311278,0.05831,92627.0,92626.0,1.5]
[1764866311577,0.0288,92615.0,92608.0,0.3608]
[1764866311772,0.0288,92615.0,92614.0,0.00080665]
[1764866311980,0.05831,92615.0,92614.0,1.50080665]
[1764866312179,0.0288,92615.0,92614.0,1.6537403]
[1764866312380,0.02889405,92615.0,92614.0,1.6537403]
[1764866312781,0.05840405,92615.0,92614.0,1.6537403]
[1764866313185,0.06140405,92615.0,92614.0,1.6537403]
[1764866313384,0.04055127,92615.0,92614.0,1.6537403]
[1764866313587,0.09886127,92615.0,92614.0,1.6537403]
[1764866313788,0.45966127,92615.0,92614.0,1.6537403]
[1764866313974,0.40135127,92615.0,92614.0,1.6537403]
[1764866314174,0.40135127,92615.0,92614.0,1.6547403]
[1764866314485,0.72239127,92615.0,92614.0,1.6547403]
[1764866314689,0.40135127,92615.0,92614.0,1.6547403]
[1764866315287,0.72239127,92615.0,92614.0,0.1547403]
[1764866315682,0.73318667,92615.0,92614.0,0.1547403]
[1764866316486,0.73318667,92615.0,92614.0,3e-07]
[1764866316887,0.80984218,92615.0,92614.0,3e-07]
[1764866317189,0.79819157,92615.0,92614.0,3e-07]
[1764866317491,0.32104,92607.0,92604.0,1.5]
[1764866317679,0.72171724,92607.0,92606.0,0.00107661]
[1764866317875,0.72171724,92607.0,92606.0,0.00026996]
[1764866318676,0.72471724,92607.0,92606.0,0.00026996]
[1764866319394,0.72471724,92607.0,92606.0,0.00107661]
[1764866319693,0.72671724,92607.0,92606.0,0.00026996]
[1764866319896,0.32104,92575.0,92557.0,0.3608]
[1764866320090,0.03757111,92574.0,92573.0,0.3281003]
[1764866320291,0.03757111,92574.0,92573.0,0.3173]
[1764866320480,0.03757111,92574.0,92573.0,1.8173]
[1764866321388,0.000162,92581.0,92580.0,0.5162395]
[1764866321579,0.000162,92581.0,92580.0,0.51704615]
[1764866321779,0.05698959,92595.0,92587.0,0.3280987]
[1764866321984,0.05698959,92595.0,92594.0,0.3173]
[1764866322286,0.3608,92598.0,92597.0,0.34428]
[1764866322493,0.41786205,92598.0,92597.0,0.34508665]
[1764866323092,0.36087246,92598.0,92597.0,0.34508665]
[1764866323797,0.36287246,92598.0,92597.0,0.34508665]
[1764866324886,0.00207246,92598.0,92597.0,0.34508665]
[1764866325086,0.000162,92607.0,92606.0,0.60531]
[1764866325289,0.000162,92607.0,92606.0,0.97771305]
[1764866325685,0.3608,92617.0,92616.0,0.60531]
[1764866326794,0.41787532,92625.0,92622.0,0.29052]
[1764866326990,0.41787532,92625.0,92624.0,0.60611665]
[1764866327204,0.000162,92626.0,92625.0,0.79013]
[1764866327397,0.000162,92626.0,92625.0,0.79093665]
[1764866327398,0.057361,92626.0,92625.0,0.79093665]
[1764866327695,0.000162,92626.0,92625.0,0.79093665]
[1764866327998,0.00258202,92626.0,92625.0,0.60611665]
[1764866328298,0.000162,92626.0,92625.0,0.60611665]
[1764866328501,0.00458202,92626.0,92625.0,0.60611665]
[1764866328689,0.002162,92626.0,92625.0,0.60611665]
[1764866329089,0.602032,92626.0,92625.0,0.00080665]
[1764866329389,0.603032,92626.0,92625.0,0.00080665]
[1764866329791,0.59987,92620.0,92610.0,0.18482]
[1764866329993,0.00242002,92611.0,92610.0,0.79013]
[1764866330295,0.3608,92618.0,92610.0,0.18482]
[1764866330500,0.3608,92618.0,92617.0,0.00080665]
[1764866330698,0.59987,92608.0,92606.0,0.51004]
[1764866330898,0.96067,92608.0,92606.0,0.51004]
[1764866331394,0.96067,92608.0,92607.0,0.00096865]
[1764866331701,0.96067,92608.0,92607.0,0.000162]
[1764866331902,0.96367,92608.0,92607.0,0.000162]
[1764866332298,0.96367,92608.0,92607.0,0.002162]
[1764866332497,0.3608,92608.0,92607.0,0.607472]
[1764866332698,0.96267,92608.0,92607.0,0.002162]
[1764866332904,0.9734662,92608.0,92607.0,0.002162]
[1764866333094,0.96267,92608.0,92607.0,0.000162]
[1764866333288,0.3638,92608.0,92607.0,0.60627865]
[1764866335895,0.003,92608.0,92607.0,0.60627865]
[1764866336404,0.360962,92626.0,92625.0,0.60531]
[1764866336698,0.38524365,92626.0,92625.0,0.60531]
[1764866336903,0.98511365,92626.0,92616.0,0.51]
[1764866337089,0.36322002,92617.0,92616.0,0.51]
[1764866337290,0.36322002,92617.0,92616.0,0.29052]
[1764866337591,0.36322002,92617.0,92616.0,0.60531]
[1764866337897,0.3608,92617.0,92616.0,0.60531]
[1764866338501,0.3658,92617.0,92616.0,0.60531]
[1764866338694,0.3658,92617.0,92616.0,0.6633504]
[1764866338898,0.360962,92626.0,92625.0,0.60531]
[1764866339102,0.3608,92635.0,92634.0,0.60531]
[1764866339700,0.59987,92634.0,92630.0,0.0107935]
[1764866339902,0.00242002,92631.0,92630.0,0.34857147]
[1764866340199,0.00242002,92631.0,92630.0,0.29052]
[1764866340405,0.30631,92628.0,92625.0,0.55805147]
[1764866340698,0.96309002,92626.0,92625.0,0.5]
[1764866341006,0.6106646,92622.0,92621.0,0.000162]
[1764866341198,0.61308462,92622.0,92621.0,0.00096865]
[1764866341399,0.61308462,92622.0,92621.0,0.000162]
[1764866341603,0.30631,92604.0,92603.0,0.05805147]
[1764866341793,0.30631,92603.0,92601.0,0.05805147]
[1764866342000,0.30873002,92602.0,92601.0,0.05805147]
[1764866342303,0.30873002,92602.0,92597.0,0.0107974]
[1764866342304,0.30631,92598.0,92597.0,0.0107974]
[1764866342502,0.60229002,92598.0,92597.0,0.0107974]
[1764866342900,0.00242002,92598.0,92597.0,0.3013174]
[1764866343097,0.3608,92605.0,92604.0,0.0107967]
[1764866343300,0.29356,92602.0,92601.0,0.010797]
[1764866343603,0.0107975,92597.0,92595.0,0.0107977]
[1764866343808,0.000162,92607.0,92595.0,0.0107977]
[1764866343809,0.98860002,92596.0,92595.0,0.0107977]
[1764866345102,0.99160002,92596.0,92595.0,0.0117977]
[1764866345599,0.003,92596.0,92595.0,0.6209077]
[1764866346007,0.000162,92607.0,92606.0,0.6199064]
[1764866346204,0.00258202,92607.0,92606.0,0.6199064]
[1764866346404,0.000162,92607.0,92606.0,0.67799073]
[1764866346604,0.000162,92607.0,92606.0,0.6199064]
[1764866346995,0.3608,92630.0,92629.0,0.30786]
[1764866347200,0.67128,92630.0,92629.0,0.3186538]
[1764866347597,0.62538,92625.0,92624.0,0.0107943]
[1764866347805,0.31048,92618.0,92617.0,0.06886833]
[1764866348002,0.31048,92618.0,92617.0,0.0107952]
[1764866348502,0.62538,92616.0,92614.0,0.06886853]
[1764866348702,0.62780002,92615.0,92614.0,0.0107954]
[1764866349302,0.6361761,92609.0,92608.0,0.000162]
[1764866349504,0.99939612,92609.0,92608.0,0.000162]
[1764866349708,1.39939612,92609.0,92608.0,0.000162]
[1764866349922,0.62538,92596.0,92595.0,0.0107976]
[1764866350409,0.62538,92596.0,92595.0,0.0107977]
[1764866351006,0.62838,92596.0,92595.0,0.0147977]
[1764866351407,0.62838,92596.0,92595.0,0.0157977]
[1764866355401,0.31348,92596.0,92595.0,0.3236577]
[1764866355606,0.003,92596.0,92595.0,0.6249077]
[1764866356001,0.62838,92596.0,92595.0,0.6249077]
[1764866356208,0.62838,92596.0,92595.0,0.0157977]
[1764866356712,0.62838,92596.0,92595.0,0.3236577]
[1764866357015,0.62838,92596.0,92595.0,0.0157977]
[1764866359017,0.31348,92596.0,92595.0,0.6249077]
[1764866359312,0.003,92596.0,92595.0,0.6249077]
[1764866359818,0.62838,92596.0,92595.0,0.0157977]
[1764866360609,0.62838,92596.0,92595.0,0.005]
[1764866360809,0.62838,92596.0,92595.0,0.06312461]
[1764866360810,0.6391776,92596.0,92595.0,0.06312461]
[1764866361010,0.6391776,92596.0,92595.0,0.005]
[1764866361205,0.62538,92577.0,92576.0,0.07748063]
[1764866361406,0.62538,92569.0,92568.0,0.02160554]
[1764866361610,0.62780002,92569.0,92568.0,0.00013355]
[1764866362112,0.62780002,92569.0,92568.0,0.0009402]
[1764866362713,0.003,92569.0,92568.0,0.62082139]
[1764866364010,0.62838,92569.0,92568.0,0.01371139]
[1764866365317,0.003,92569.0,92568.0,0.62282139]
[1764866366314,0.000162,92578.0,92577.0,0.6199098]
[1764866366614,0.000162,92578.0,92577.0,0.98151645]
[1764866366818,0.000162,92578.0,92577.0,0.62071645]
[1764866367121,0.000162,92578.0,92568.0,0.01290474]
[1764866367122,0.62538,92569.0,92568.0,0.01290474]
[1764866367426,0.62780002,92569.0,92568.0,0.02370564]
[1764866368518,0.62538,92569.0,92568.0,0.02370564]
[1764866368720,0.62538,92569.0,92568.0,0.02270564]
[1764866369025,0.62538,92569.0,92568.0,0.02070564]
[1764866369424,0.62838,92569.0,92568.0,0.02070564]
[1764866369619,0.62838,92569.0,92568.0,0.01093445]
[1764866369817,0.62838,92569.0,92568.0,0.00213355]
[1764866370016,0.62538,92567.0,92566.0,0.00027008]
[1764866370211,0.62780002,92567.0,92566.0,0.00027008]
[1764866370416,0.63860102,92567.0,92566.0,0.00027008]
[1764866370617,0.62538,92564.0,92563.0,0.00988992]
[1764866370821,0.62538,92561.0,92560.0,0.0108017]
[1764866371026,0.62789619,92561.0,92560.0,0.02098053]
[1764866371626,0.62789619,92561.0,92560.0,0.05968032]
[1764866371828,0.62789619,92561.0,92560.0,0.02098053]
[1764866372435,0.63089619,92561.0,92560.0,0.02098053]
[1764866373328,0.63089619,92561.0,92560.0,0.02298053]
[1764866373525,0.00309617,92561.0,92560.0,0.84614032]
[1764866373830,0.3608,92589.0,92577.0,0.28993]
[1764866374028,0.00258202,92578.0,92577.0,0.5930798]
[1764866374230,0.62527202,92578.0,92577.0,0.0107998]
[1764866375027,0.000162,92578.0,92577.0,0.5940798]
[1764866375332,0.003162,92578.0,92577.0,0.5950798]
[1764866376625,0.003162,92578.0,92577.0,0.63375607]
[1764866376832,0.003162,92578.0,92577.0,0.5950798]
[1764866377126,0.66924,92593.0,92592.0,0.5930781]
[1764866377327,0.62269,92610.0,92609.0,0.0107961]
[1764866377630,0.3608,92621.0,92620.0,0.0107948]
[1764866377816,0.3608,92621.0,92620.0,0.5930748]
[1764866378217,0.308602,92630.0,92629.0,0.0107938]
[1764866378428,0.000162,92630.0,92629.0,0.59388045]
[1764866378921,0.000162,92630.0,92629.0,0.95468045]
[1764866379123,0.31102202,92630.0,92629.0,0.95468045]
[1764866379425,0.002,92630.0,92629.0,0.37561891]
[1764866379620,0.002,92630.0,92629.0,0.96869271]
[1764866381024,0.000162,92639.0,92638.0,0.5930727]
[1764866381223,0.000162,92639.0,92638.0,0.59387935]
[1764866381932,0.60976,92662.0,92661.0,0.01079]
[1764866382118,0.30223,92656.0,92650.0,0.0107912]
[1764866382324,0.60597002,92651.0,92650.0,0.0107912]
[1764866384525,0.30465002,92651.0,92650.0,0.3167312]
[1764866384723,0.00542002,92651.0,92650.0,0.6050012]
[1764866384926,0.30765002,92651.0,92650.0,0.6050012]
[1764866385128,0.60797002,92651.0,92650.0,0.0107912]
[1764866385327,0.60897002,92651.0,92650.0,0.0147912]
[1764866385519,0.60897002,92651.0,92650.0,0.004]
[1764866385725,0.60355,92642.0,92641.0,0.01095421]
[1764866385928,0.60597002,92642.0,92641.0,0.01095421]
[1764866386633,0.96677002,92642.0,92641.0,0.01095421]
[1764866386931,0.96677002,92642.0,92641.0,0.00016191]
[1764866387729,0.60355,92621.0,92620.0,0.3608]
[1764866387935,0.60355,92621.0,92620.0,0.0107948]
[1764866388138,0.60355,92621.0,92620.0,0.02070172]
[1764866389135,0.60455,92621.0,92620.0,0.03170172]
[1764866389535,0.001,92621.0,92620.0,0.98171172]
[1764866390233,0.00016191,92630.0,92629.0,0.6000038]
[1764866390431,0.3608,92645.0,92644.0,0.600002]
[1764866391332,0.66303,92645.0,92644.0,0.600002]
[1764866391835,0.96635,92645.0,92644.0,0.600002]
[1764866392521,0.96835,92645.0,92644.0,0.600002]
[1764866392838,0.96835,92645.0,92644.0,0.010792]
[1764866393833,0.96535,92645.0,92644.0,0.010792]
[1764866394033,0.96735,92645.0,92644.0,0.010792]
[1764866395240,0.010792,92644.0,92640.0,0.0107924]